fUSD/lending_fUSD_20260128
["ID","MTS","AMOUNT","RATE_DAILY","PERIOD"]
[403856398,1769603517813,500.0,0.00014117,2]
[403856399,1769603517887,500.0,0.00014117,2]
[403856400,1769603517935,500.0,0.00014117,2]
[403856401,1769603517979,500.0,0.00014117,2]
[403856402,1769603518027,500.0,0.00014117,2]
[403856403,1769603518085,500.0,0.00014117,2]
[403856404,1769603518128,500.0,0.00014117,2]
[403856405,1769603518170,500.0,0.00014117,2]
[403856406,1769603518231,500.0,0.00014117,2]
[403856407,1769603518272,500.0,0.00014117,2]
[403856408,1769603518645,500.0,0.00014117,2]
[403856409,1769603518687,500.0,0.00014117,2]
[403856410,1769603518731,500.0,0.00014117,2]
[403856411,1769603518777,500.0,0.00014117,2]
[403856412,1769603518823,500.0,0.00014117,2]
[403856413,1769603518866,500.0,0.00014117,2]
[403856414,1769603518921,23.75163801,0.00014117,2]
[403856415,1769603518946,476.24836199,0.00014117,2]
[403856416,1769603518996,500.0,0.00014117,2]
[403856417,1769603519041,500.0,0.00014117,2]
[403856418,1769603519085,500.0,0.00014117,2]
[403856419,1769603519130,500.0,0.00014117,2]
[403856420,1769603519183,500.0,0.00014117,2]
[403856421,1769603519231,500.0,0.00014117,2]
[403856422,1769603519273,500.0,0.00014117,2]
[403856423,1769603519321,500.0,0.00014117,2]
[403856424,1769603519365,500.0,0.00014117,2]
[403856425,1769603519409,500.0,0.00014117,2]
[403856426,1769603519457,500.0,0.00014117,2]
[403856427,1769603519517,500.0,0.00014117,2]
[403856428,1769603519562,500.0,0.00014117,2]
[403856429,1769603519628,500.0,0.00014117,2]
[403856430,1769603519679,500.0,0.00014117,2]
[403856431,1769603519722,500.0,0.00014117,2]
[403856432,1769603519771,500.0,0.00014117,2]
[403856433,1769603519832,227.45676588,0.00014117,2]
[403856434,1769603519888,500.0,0.00014117,2]
[403856435,1769603519945,296.30487213,0.00014117,2]
[403856436,1769603519972,203.69512787,0.00014117,2]
[403856437,1769603520023,500.0,0.00014117,2]
[403856438,1769603561554,400.0,0.000137,5]
[403856439,1769603563190,9296.31487213,0.00014019,2]
[403856440,1769603563213,3297.03302653,0.00014019,2]
[403856441,1769603563635,500.0,0.00014117,2]
[403856442,1769603563673,800.0,0.000138,5]
[403856443,1769603563718,500.0,0.00014117,2]
[403856444,1769603563763,500.0,0.00014117,2]
[403856445,1769603563803,346.72573332,0.00014117,2]
[403856446,1769603563852,500.0,0.00014117,2]
[403856447,1769603563908,500.0,0.00014117,2]
[403856448,1769603563956,500.0,0.00014117,2]
[403856449,1769603564004,500.0,0.00014117,2]
[403856450,1769603564047,500.0,0.00014117,2]
[403856451,1769603564090,500.0,0.00014117,2]
[403856452,1769603564139,500.0,0.00014117,2]
[403856453,1769603564180,500.0,0.00014117,2]
[403856454,1769603564220,500.0,0.00014117,2]
[403856455,1769603564260,356.25124015,0.00014117,2]
[403856456,1769603565770,1200.0,0.000139,5]
[403856457,1769603573214,-143.74875985,0.00014117,2]
[403856458,1769603573245,-500.0,0.00014117,2]
[403856459,1769603573276,-500.0,0.00014117,2]
[403856460,1769603573306,-500.0,0.00014117,2]
[403856461,1769603573336,-500.0,0.00014117,2]
[403856462,1769603573367,-500.0,0.00014117,2]
[403856463,1769603573404,-500.0,0.00014117,2]
[403856464,1769603573442,-500.0,0.00014117,2]
[403856465,1769603573483,-500.0,0.00014117,2]
[403856466,1769603573522,-500.0,0.00014117,2]
[403856467,1769603573563,-212.5124803,0.00014117,2]
[403856470,1769603598400,2507.72373717,0.00014019,2]
[403856471,1769603714003,-150.0,0.00014116,2]
[403856472,1769603714024,-300.0,0.00014116,2]
[403856473,1769603714047,-1200.0,0.00014116,2]
[403856474,1769603714068,-150.0,0.00014116,2]
[403856475,1769603768343,7492.28626283,0.00014019,2]
[403856476,1769603768366,6877.07824204,0.00014019,2]
[403856477,1769603883203,2375.83764824,0.00014019,2]
[403856478,1769603913873,500.22,0.00021,30]
[403856479,1769603928478,539.13458236,0.00014019,2]
[403856484,1769604062026,-280.08935648,0.00014108,2]
[403856485,1769604062055,-151.0,0.00014115,2]
[403856486,1769604062092,-151.0,0.00014115,2]
[403856487,1769604062125,-150.0,0.00014116,2]
[403856488,1769604062155,-1200.0,0.00014116,2]
[403856489,1769604062187,-500.0,0.00014116,2]
[403856490,1769604062219,-356.2518431,0.00014116,2]
[403856491,1769604062250,-500.0,0.00014116,2]
[403856492,1769604062283,-500.0,0.00014116,2]
[403856493,1769604062314,-500.0,0.00014116,2]
[403856494,1769604062345,-500.0,0.00014116,2]
[403856495,1769604062637,-500.0,0.00014116,2]
[403856496,1769604062671,-500.0,0.00014116,2]
[403856497,1769604062703,-500.0,0.00014116,2]
[403856498,1769604062735,-500.0,0.00014116,2]
[403856499,1769604062767,-500.0,0.00014116,2]
[403856500,1769604062798,-500.0,0.00014116,2]
[403856501,1769604062830,-500.0,0.00014116,2]
[403856502,1769604062863,-500.0,0.00014116,2]
[403856503,1769604062895,-300.00000001,0.00014116,2]
[403856504,1769604062931,-500.0,0.00014116,2]
[403856505,1769604064954,-500.0,0.00014116,2]
[403856506,1769604064990,-500.0,0.00014116,2]
[403856507,1769604065023,-500.0,0.00014116,2]
[403856508,1769604065058,-500.0,0.00014116,2]
[403856509,1769604065092,-500.0,0.00014116,2]
[403856510,1769604065124,-500.0,0.00014116,2]
[403856511,1769604065165,-500.0,0.00014116,2]
[403856512,1769604065213,-500.0,0.00014116,2]
[403856513,1769604065252,-500.0,0.00014116,2]
[403856514,1769604065301,-500.0,0.00014116,2]
[403856515,1769604068631,-500.0,0.00014116,2]
[403856516,1769604068664,-500.0,0.00014116,2]
[403856517,1769604068699,-500.0,0.00014116,2]
[403856518,1769604068730,-500.0,0.00014116,2]
[403856519,1769604068763,-500.0,0.00014116,2]
[403856520,1769604068796,-500.0,0.00014116,2]
[403856521,1769604068827,-500.0,0.00014116,2]
[403856522,1769604068859,-500.0,0.00014116,2]
[403856523,1769604068893,-500.0,0.00014116,2]
[403856524,1769604068924,-500.0,0.00014116,2]
[403856525,1769604071598,-500.0,0.00014116,2]
[403856526,1769604071631,-500.0,0.00014116,2]
[403856527,1769604071662,-500.0,0.00014116,2]
[403856528,1769604071695,-500.0,0.00014116,2]
[403856529,1769604071726,-500.0,0.00014116,2]
[403856530,1769604071758,-500.0,0.00014116,2]
[403856531,1769604071790,-500.0,0.00014116,2]
[403856532,1769604071821,-500.0,0.00014116,2]
[403856533,1769604071852,-500.0,0.00014116,2]
[403856534,1769604071884,-500.0,0.00014116,2]
[403856535,1769604072028,-500.0,0.00014116,2]
[403856536,1769604072060,-500.0,0.00014116,2]
[403856537,1769604072092,-500.0,0.00014116,2]
[403856538,1769604072125,-500.0,0.00014116,2]
[403856539,1769604072159,-500.0,0.00014116,2]
[403856540,1769604072190,-500.0,0.00014116,2]
[403856541,1769604072221,-500.0,0.00014116,2]
[403856542,1769604072251,-500.0,0.00014116,2]
[403856543,1769604072281,-500.0,0.00014116,2]
[403856544,1769604072312,-500.0,0.00014116,2]
[403856545,1769604076470,-1957.91759191,0.00014019,2]
[403856546,1769604079082,-10000.01,0.00014019,2]
[403856547,1769604079097,-899.40635412,0.00014019,2]
[403856548,1769604092578,2709.021,0.00013836,2]
[403856549,1769604092700,204.674,0.00013836,2]
[403856550,1769604144191,378.38431742,0.00014056,2]
[403856551,1769604144227,184.44067477,0.00014056,2]
[403856552,1769604144276,3203.84743619,0.00014056,2]
[403856553,1769604155240,3319.64257162,0.00014019,2]
[403856554,1769604155262,9612.7854827,0.00014019,2]
[403856555,1769604161418,387.2245173,0.00014019,2]
[403856556,1769604161440,145.44067099,0.00014019,2]
[403856557,1769604170678,2078.85794221,0.00014019,2]
[403856558,1769604204706,3254.62917349,0.00014056,2]
[403856560,1769604257632,500.0,0.00014008,2]
[403856561,1769604328569,163.21,0.00011351,2]
[403856562,1769604340142,359.4230549,0.00014019,2]
[403856563,1769604423363,400.0,0.000137,5]
[403856564,1769604425451,900.0,0.000138,5]
[403856565,1769604427562,1400.0,0.000139,5]
[403856566,1769604453560,1819.00069939,0.00014019,2]
[403856567,1769604461751,166.66,0.00013332,2]
[403856568,1769604461813,166.66,0.00013612,2]
[403856569,1769604461867,166.66,0.00013893,2]
[403856570,1769604540894,1179.46845902,0.00014019,2]
[403856571,1769604540919,10000.01,0.00014019,2]
[403856572,1769604540943,459.70678994,0.00014019,2]
[403856573,1769604583794,9540.30321006,0.00014019,2]
[403856574,1769604583822,2031.29734134,0.00014019,2]
[403856575,1769604593747,7968.71265866,0.00014017,2]
[403856576,1769604593783,10000.01,0.00014017,2]
[403856577,1769604593814,10000.01,0.00014017,2]
[403856578,1769604593843,10000.01,0.00014017,2]
[403856579,1769604593872,10000.01,0.00014017,2]
[403856580,1769604593899,10000.01,0.00014017,2]
[403856581,1769604593926,10000.01,0.00014017,2]
[403856582,1769604593954,10000.01,0.00014017,2]
[403856583,1769604593979,10000.01,0.00014017,2]
[403856584,1769604594006,10000.01,0.00014017,2]
[403856585,1769604599785,-689.12,0.00013627,2]
[403856586,1769604599817,-689.12,0.00013649,2]
[403856587,1769604599849,-689.12,0.0001367,2]
[403856588,1769604599881,-689.12,0.00013692,2]
[403856589,1769604599911,-689.12,0.00013713,2]
[403856590,1769604599941,-689.12,0.00013735,2]
[403856591,1769604599971,-689.12,0.00013756,2]
[403856592,1769604600078,-689.12,0.00013778,2]
[403856593,1769604600108,-689.12,0.00013799,2]
[403856594,1769604600137,-689.12,0.00013821,2]
[403856595,1769604600167,-689.12,0.00013842,2]
[403856596,1769604600197,-689.12,0.00013864,2]
[403856597,1769604600227,-689.12,0.00013885,2]
[403856598,1769604600369,-689.12,0.00013907,2]
[403856599,1769604600511,-689.12,0.00013928,2]
[403856600,1769604600777,-689.12,0.0001395,2]
[403856601,1769604600869,-689.12,0.00013971,2]
[403856602,1769604601017,-689.12,0.00013993,2]
[403856603,1769604601195,-689.12,0.00014014,2]
[403856604,1769604602775,-150.0,0.00014016,2]
[403856605,1769604602807,-1200.0,0.00014016,2]
[403856606,1769604604525,-1113.47,0.00014017,2]
[403856608,1769604605913,-10000.01,0.00014017,2]
[403856609,1769604606090,-10000.01,0.00014017,2]
[403856610,1769604606190,-10000.01,0.00014017,2]
[403856611,1769604606313,-10000.01,0.00014017,2]
[403856612,1769604606414,-10000.01,0.00014017,2]
[403856613,1769604606541,-10000.01,0.00014017,2]
[403856614,1769604606689,-10000.01,0.00014017,2]
[403856615,1769604606857,-10000.01,0.00014017,2]
[403856616,1769604607002,-10000.01,0.00014017,2]
[403856617,1769604607723,539.886745,7.945e-05,2]
[403856618,1769604615627,-10000.01,0.00014017,2]
[403856619,1769604615642,-10000.01,0.00014017,2]
[403856620,1769604615657,-10000.01,0.00014017,2]
[403856621,1769604615683,-10000.01,0.00014017,2]
[403856622,1769604615699,-10000.01,0.00014017,2]
[403856623,1769604615719,-10000.01,0.00014017,2]
[403856624,1769604615751,-10000.01,0.00014017,2]
[403856625,1769604615867,-10000.01,0.00014017,2]
[403856626,1769604616003,-10000.01,0.00014017,2]
[403856627,1769604616123,-10000.01,0.00014017,2]
[403856628,1769604618287,600.0,0.000139,5]
[403856630,1769604632198,-1432.6153019,0.00014017,2]
[403856631,1769604632211,-28531.69203101,0.00014017,2]
[403856634,1769604632224,-1849.13491146,0.00014017,2]
[403856636,1769604632310,-3406.59746186,0.00014017,2]
[403856637,1769604632321,-4387.67352384,0.00014017,2]
[403856638,1769604632367,-292.97700002,0.00014017,2]
[403856639,1769604632426,-590.20062203,0.00014017,2]
[403856640,1769604632441,-530525.31478922,0.00014017,2]
[403856641,1769604632456,-2544.94137987,0.00014017,2]
[403856642,1769604632467,-689.12,0.00014036,2]
[403856643,1769604632480,-179.15,0.000141,2]
[403856645,1769604632490,-281.27998493,0.0001411,2]
[403856648,1769604632501,-503.61948635,0.0001411,2]
[403856649,1769604632516,-500.0,0.0001411,2]
[403856650,1769604632530,-253.16693005,0.0001411,2]
[403856652,1769604632542,-600.0,0.00014111,2]
[403856654,1769604632554,-1121.06156478,0.00014112,2]
[403856656,1769604632566,-250.0,0.00014112,2]
[403856659,1769604632578,-600.0,0.00014113,2]
[403856661,1769604632590,-683.13833527,0.00014113,2]
[403856662,1769604632602,-1403.42,0.00014115,2]
[403856663,1769604632614,-500.0,0.00014115,2]
[403856664,1769604632627,-500.0,0.00014115,2]
[403856665,1769604632638,-500.0,0.00014115,2]
[403856666,1769604632649,-500.0,0.00014115,2]
[403856667,1769604632660,-323.56664132,0.00014115,2]
[403856668,1769604632670,-500.0,0.00014115,2]
[403856669,1769604632680,-500.0,0.00014115,2]
[403856670,1769604632691,-500.0,0.00014115,2]
[403856671,1769604632704,-500.0,0.00014115,2]
[403856672,1769604632716,-500.0,0.00014115,2]
[403856673,1769604632727,-500.0,0.00014115,2]
[403856674,1769604632738,-500.0,0.00014115,2]
[403856675,1769604632750,-500.0,0.00014115,2]
[403856676,1769604632764,-500.0,0.00014115,2]
[403856677,1769604632776,-500.0,0.00014115,2]
[403856678,1769604632788,-500.0,0.00014115,2]
[403856679,1769604632799,-500.0,0.00014115,2]
[403856680,1769604632812,-500.0,0.00014115,2]
[403856681,1769604632824,-500.0,0.00014115,2]
[403856682,1769604632836,-500.0,0.00014115,2]
[403856683,1769604632850,-500.0,0.00014115,2]
[403856684,1769604632861,-500.0,0.00014115,2]
[403856685,1769604632873,-500.0,0.00014115,2]
[403856686,1769604632885,-500.0,0.00014115,2]
[403856687,1769604632896,-500.0,0.00014115,2]
[403856688,1769604632908,-500.0,0.00014115,2]
[403856689,1769604632920,-500.0,0.00014115,2]
[403856690,1769604632931,-500.0,0.00014115,2]
[403856691,1769604632943,-500.0,0.00014115,2]
[403856692,1769604632955,-500.0,0.00014115,2]
[403856693,1769604632967,-500.0,0.00014115,2]
[403856694,1769604632981,-500.0,0.00014115,2]
[403856695,1769604632992,-500.0,0.00014115,2]
[403856696,1769604633003,-500.0,0.00014115,2]
[403856697,1769604633014,-500.0,0.00014115,2]
[403856698,1769604633025,-500.0,0.00014115,2]
[403856699,1769604633037,-500.0,0.00014115,2]
[403856700,1769604633048,-500.0,0.00014115,2]
[403856701,1769604633058,-200.0,0.00014115,2]
[403856702,1769604633068,-150.0,0.00014116,2]
[403856703,1769604633079,-1000.0,0.00014117,2]
[403856704,1769604633090,-500.0,0.00014117,2]
[403856705,1769604633103,-514.83889524,0.00014117,2]
[403856706,1769604633117,-500.0,0.00014117,2]
[403856707,1769604633129,-537.89662672,0.00014117,2]
[403856708,1769604633139,-500.0,0.00014117,2]
[403856709,1769604633150,-500.0,0.00014117,2]
[403856710,1769604633160,-500.0,0.00014117,2]
[403856711,1769604633170,-500.0,0.00014117,2]
[403856712,1769604633180,-292.96859598,0.00014117,2]
[403856713,1769604633192,-500.0,0.00014117,2]
[403856714,1769604633204,-500.0,0.00014117,2]
[403856715,1769604633225,-280.13,0.00014117,2]
[403856716,1769604633236,-500.0,0.00014117,2]
[403856717,1769604633247,-500.0,0.00014117,2]
[403856718,1769604633258,-589.81125043,0.00014117,2]
[403856719,1769604633269,-500.0,0.00014117,2]
[403856720,1769604633280,-500.0,0.00014117,2]
[403856721,1769604633291,-500.0,0.00014117,2]
[403856722,1769604633302,-500.0,0.00014117,2]
[403856723,1769604633313,-500.0,0.00014117,2]
[403856724,1769604633323,-196.06949723,0.00014117,2]
[403856725,1769604633335,-500.0,0.00014117,2]
[403856726,1769604633345,-500.0,0.00014117,2]
[403856727,1769604633357,-500.0,0.00014117,2]
[403856728,1769604633369,-500.0,0.00014117,2]
[403856729,1769604633380,-500.0,0.00014117,2]
[403856730,1769604633391,-500.0,0.00014117,2]
[403856731,1769604633402,-500.0,0.00014117,2]
[403856732,1769604633412,-500.0,0.00014117,2]
[403856733,1769604633423,-500.0,0.00014117,2]
[403856734,1769604633434,-500.0,0.00014117,2]
[403856735,1769604633444,-510.50875951,0.00014117,2]
[403856736,1769604633455,-500.0,0.00014117,2]
[403856737,1769604633466,-500.0,0.00014117,2]
[403856738,1769604633477,-509.33160404,0.00014117,2]
[403856739,1769604633488,-346.72573332,0.00014117,2]
[403856740,1769604633499,-361.78276339,0.00014117,2]
[403856741,1769604633511,-33266.4327,0.00014119,2]
[403856742,1769604633522,-1000.0,0.00014119,2]
[403856743,1769604633533,-500.0,0.00014148,2]
[403856744,1769604633545,-166.66,0.00014174,2]
[403856745,1769604633557,-522.58196156,0.00014218,2]
[403856746,1769604633568,-500.0,0.00014218,2]
[403856747,1769604633579,-500.0,0.00014218,2]
[403856748,1769604633591,-500.0,0.00014218,2]
[403856749,1769604633602,-214.92638716,0.00014218,2]
[403856750,1769604633613,-500.0,0.00014218,2]
[403856751,1769604633625,-500.0,0.00014218,2]
[403856752,1769604633636,-500.0,0.00014218,2]
[403856753,1769604633647,-500.0,0.00014218,2]
[403856754,1769604633658,-500.0,0.00014218,2]
[403856755,1769604633669,-500.0,0.00014218,2]
[403856756,1769604633680,-500.0,0.00014218,2]
[403856757,1769604633691,-500.0,0.00014218,2]
[403856758,1769604633702,-500.0,0.00014218,2]
[403856759,1769604633713,-500.0,0.00014218,2]
[403856760,1769604633724,-500.0,0.00014218,2]
[403856761,1769604633735,-500.0,0.00014218,2]
[403856762,1769604633746,-500.0,0.00014218,2]
[403856763,1769604633762,-500.0,0.00014218,2]
[403856764,1769604633773,-500.0,0.00014218,2]
[403856765,1769604633783,-500.0,0.00014218,2]
[403856766,1769604633796,-500.0,0.00014218,2]
[403856767,1769604633806,-509.89335686,0.00014218,2]
[403856768,1769604633817,-538.40195499,0.00014218,2]
[403856769,1769604633829,-4408.34,0.00014289,2]
[403856770,1769604633840,-1403.42,0.00014389,2]
[403856771,1769604633851,-11639.18524887,0.0001445,2]
[403856772,1769604633863,-11571.60055137,0.0001445,2]
[403856773,1769604633875,-166.66,0.00014454,2]
[403856774,1769604633885,-1403.42,0.00014663,2]
[403856775,1769604633896,-1751.71,0.00014685,2]
[403856776,1769604633908,-166.66,0.00014733,2]
[403856777,1769604633919,-166.66,0.00014735,2]
[403856778,1769604633930,-11639.18524887,0.00014881,2]
[403856779,1769604633942,-11571.60055137,0.00014881,2]
[403856780,1769604633953,-426.68,0.00014904,2]
[403856781,1769604633964,-1403.42,0.00014937,2]
[403856782,1769604633974,-638.0,0.00014996,2]
[403856783,1769604633985,-477.0,0.00015037,2]
[403856784,1769604633996,-214.0,0.00015114,2]
[403856785,1769604634007,-1426.31810796,0.00015115,2]
[403856786,1769604634019,-1819.00069939,0.00015141,2]
[403856787,1769604634030,-1403.42,0.00015211,2]
[403856788,1769604634041,-166.66,0.00015219,2]
[403856789,1769604634052,-255.0,0.00015231,2]
[403856790,1769604634063,-150.99,0.0001531,2]
[403856791,1769604634074,-150.99,0.0001531,2]
[403856792,1769604634085,-9999.99,0.0001531,2]
[403856793,1769604634096,-348.71,0.0001531,2]
[403856794,1769604634108,-298.71,0.0001531,2]
[403856795,1769604634119,-24455.22,0.0001531,2]
[403856796,1769604634131,-9999.99,0.0001531,2]
[403856797,1769604634142,-999.99,0.0001531,2]
[403856798,1769604634154,-9999.99,0.0001531,2]
[403856799,1769604634167,-5179.33,0.0001531,2]
[403856800,1769604634178,-1055.2,0.0001531,2]
[403856801,1769604634189,-342.37,0.0001531,2]
[403856802,1769604634200,-9999.99,0.0001531,2]
[403856803,1769604634211,-11639.18524887,0.00015313,2]
[403856804,1769604634222,-11571.60055137,0.00015313,2]
[403856805,1769604634233,-150.0011484,0.00015374,2]
[403856806,1769604634243,-480.0,0.00015418,2]
[403856807,1769604634254,-1403.42,0.00015485,2]
[403856808,1769604634270,-2500.0,0.00015521,2]
[403856809,1769604634281,-250.0,0.00015521,2]
[403856810,1769604634292,-600.0,0.00015521,2]
[403856811,1769604634302,-300.0,0.00015521,2]
[403856812,1769604634313,-166.66,0.00015706,2]
[403856813,1769604634323,-265.01,0.00015743,2]
[403856814,1769604634334,-11639.18524887,0.00015744,2]
[403856815,1769604634345,-11571.60055137,0.00015744,2]
[403856816,1769604634355,-1403.42,0.00015759,2]
[403856817,1769604634366,-7686.46,0.0001586,2]
[403856818,1769604634377,-1200.0,0.000159,5]
[403856819,1769604634388,-208.57,0.00015955,2]
[403856820,1769604634400,-359.42305489,0.0001596,2]
[403856821,1769604634413,-500.0,0.00015999,2]
[403856822,1769604634426,-500.0,0.00015999,2]
[403856823,1769604634437,-551.71651014,0.00015999,2]
[403856824,1769604634452,-1403.42,0.00016033,2]
[403856825,1769604634464,-1228.0,0.00016082,2]
[403856826,1769604634475,-3764.07605348,0.00016115,2]
[403856827,1769604634487,-9999.99,0.00016116,2]
[403856828,1769604634500,-11639.18524887,0.00016175,2]
[403856829,1769604634512,-11571.60055137,0.00016175,2]
[403856830,1769604634523,-166.66,0.00016192,2]
[403856831,1769604634534,-1819.00069939,0.00016263,2]
[403856832,1769604634544,-1403.42,0.00016307,2]
[403856833,1769604634556,-589.202882,0.00016338,2]
[403856834,1769604634566,-500.0,0.00016373,2]
[403856835,1769604634576,-500.0,0.00016373,2]
[403856836,1769604634587,-500.0,0.00016373,2]
[403856837,1769604634597,-500.0,0.00016373,2]
[403856838,1769604634608,-459.38164171,0.00016373,2]
[403856839,1769604634619,-500.0,0.00016373,2]
[403856840,1769604634630,-500.0,0.00016373,2]
[403856841,1769604634641,-500.0,0.00016373,2]
[403856842,1769604634652,-500.0,0.00016373,2]
[403856843,1769604634663,-501.33636184,0.00016373,2]
[403856844,1769604634673,-186.72623766,0.00016428,2]
[403856845,1769604634685,-433.0,0.00016431,2]
[403856846,1769604634695,-500.0,0.00016437,2]
[403856847,1769604634706,-500.0,0.00016437,2]
[403856848,1769604634716,-155.0,0.00016437,2]
[403856849,1769604634727,-511.74870843,0.00016438,2]
[403856850,1769604634738,-634.97810992,0.00016438,2]
[403856851,1769604634748,-166.46677114,0.00016438,2]
[403856852,1769604634759,-537.07334563,0.00016438,2]
[403856853,1769604634775,-500.0,0.00016438,2]
[403856854,1769604634787,-500.0,0.00016438,2]
[403856855,1769604634797,-500.0,0.00016438,2]
[403856856,1769604634808,-500.0,0.00016438,2]
[403856857,1769604634819,-500.0,0.00016438,2]
[403856858,1769604634829,-500.0,0.00016438,2]
[403856859,1769604634842,-500.0,0.00016438,2]
[403856860,1769604634853,-500.0,0.00016438,2]
[403856861,1769604634863,-500.0,0.00016438,2]
[403856862,1769604634873,-500.0,0.00016438,2]
[403856863,1769604634885,-500.0,0.00016438,2]
[403856864,1769604634898,-500.0,0.00016438,2]
[403856865,1769604634909,-265.38149766,0.00016438,2]
[403856866,1769604634919,-1757.62,0.00016438,2]
[403856867,1769604634929,-1757.62,0.00016438,2]
[403856868,1769604634939,-1757.62,0.00016438,2]
[403856869,1769604634949,-1757.62,0.00016438,2]
[403856870,1769604634959,-1757.62,0.00016438,2]
[403856871,1769604634969,-1757.62,0.00016438,2]
[403856872,1769604634979,-1757.62,0.00016438,2]
[403856873,1769604634990,-1757.62,0.00016438,2]
[403856874,1769604635000,-1757.62,0.00016438,2]
[403856875,1769604635011,-1757.62,0.00016438,2]
[403856876,1769604635021,-1757.62,0.00016438,2]
[403856877,1769604635031,-1757.62,0.00016438,2]
[403856878,1769604635042,-1757.62,0.00016438,2]
[403856879,1769604635052,-1757.62,0.00016438,2]
[403856880,1769604635062,-1757.62,0.00016438,2]
[403856881,1769604635073,-1757.62,0.00016438,2]
[403856882,1769604635083,-1757.62,0.00016438,2]
[403856883,1769604635094,-1757.62,0.00016438,2]
[403856884,1769604635104,-1757.62,0.00016438,2]
[403856885,1769604635115,-1757.62,0.00016438,2]
[403856886,1769604635125,-1757.62,0.00016438,2]
[403856887,1769604635136,-1757.62,0.00016438,2]
[403856888,1769604635147,-1757.62,0.00016438,2]
[403856889,1769604635158,-1757.71360521,0.00016438,2]
[403856890,1769604635170,-500.0,0.00016438,2]
[403856891,1769604635180,-500.0,0.00016438,2]
[403856892,1769604635191,-500.0,0.00016438,2]
[403856893,1769604635202,-500.0,0.00016438,2]
[403856894,1769604635213,-500.0,0.00016438,2]
[403856895,1769604635225,-500.0,0.00016438,2]
[403856896,1769604635236,-500.0,0.00016438,2]
[403856897,1769604635247,-500.0,0.00016438,2]
[403856898,1769604635259,-500.0,0.00016438,2]
[403856899,1769604635271,-500.0,0.00016438,2]
[403856900,1769604635283,-309.45015683,0.00016438,2]
[403856901,1769604635294,-500.0,0.00016438,2]
[403856902,1769604635304,-500.0,0.00016438,2]
[403856903,1769604635315,-500.0,0.00016438,2]
[403856904,1769604635332,-500.0,0.00016438,2]
[403856905,1769604635342,-500.0,0.00016438,2]
[403856906,1769604635354,-500.0,0.00016438,2]
[403856907,1769604635364,-500.0,0.00016438,2]
[403856908,1769604635374,-500.0,0.00016438,2]
[403856909,1769604635385,-500.0,0.00016438,2]
[403856910,1769604635395,-500.0,0.00016438,2]
[403856911,1769604635406,-500.0,0.00016438,2]
[403856912,1769604635418,-500.0,0.00016438,2]
[403856913,1769604635431,-500.0,0.00016438,2]
[403856914,1769604635443,-500.0,0.00016438,2]
[403856915,1769604635456,-500.0,0.00016438,2]
[403856916,1769604635467,-500.0,0.00016438,2]
[403856917,1769604635479,-500.0,0.00016438,2]
[403856918,1769604635490,-166.79628435,0.00016438,2]